{"text_format":"1","workbook":"xlsx","n_sheets":12,"sheets":["Lists","Cover Page","Contents","Instructions","Section I","Section II","Section III","Section IV","Section V","Section VI","Section VII","Data Check Sheet"],"not_rendered":{"charts":0,"images":1,"macros":1,"external_links":0,"defined_names":34,"comments":0,"pivot_tables":0},"unopened":[],"bounds":{"document_bytes":16777216,"sheet_cells":100000,"rows_first":2000,"rows_last":500,"rows_between":2000,"halvings":0,"cell_chars":16384,"cell_head_chars":4096},"cells_cut":0,"cells_raw":0,"read":"whole","date_system":"1900"}

{"sheet":"Lists","index":0,"n_rows":5,"n_cols":1,"rows_kept":5,"cut":false,"hidden":true,"merged":[]}
["Select District Name  --->"]
["Anchorage"]
["Fairbanks"]
["Juneau"]
["Sitka"]

{"sheet":"Cover Page","index":1,"n_rows":9,"n_cols":1,"rows_kept":9,"cut":false,"hidden":false,"merged":[]}
["ANNUAL PROGRAM EVALUATION\nof Title I, Part D, Subpart 2 - Competitive\nPREVENTION AND INTERVENTION PROGRAMS\nFOR CHILDREN AND YOUTH WHO ARE\nNEGLECTED OR DELINQUENT\nas required by Title I, Part D\nof the Every Student Succeeds Act"]
[]
["Based on Fiscal Year 2024 (July 1, 2023 - June 30, 2024)"]
["Due November 29, 2024"]
[{"$f":"\"District:  \"&IF('Section I'!B2=\"Select District Name  --->\",\"Enter District Name on the Section I tab\",'Section I'!B2&\": \"&'Section I'!B3)","v":"District:  Enter District Name on the Section I tab"}]
["Alaska Department of Education & Early Development\nPO Box 110500 • 333 Willoughby AVE, 9th FL, State Office\nJuneau, AK  99811-0500\nhttp://education.alaska.gov/"]
["eed.NorDdata@alaska.gov"]
["Form # 05-24-012"]
["end of page"]

{"sheet":"Contents","index":2,"n_rows":23,"n_cols":1,"rows_kept":23,"cut":false,"hidden":false,"merged":[]}
["CONTENTS"]
[]
["INSTRUCTIONS FOR COMPLETING THIS EVALUATION"]
["SECTION I: FACILITY AND SCHOOL DISTRICT INFORMATION"]
["SECTION II: PROGRAM EVALUATION"]
["SECTION III: ASSESSMENT TOOLS"]
["SECTION IV: FACILITY AND STUDENTS COUNT INFORMATION"]
["SECTION V: STUDENT DEMOGRAPHIC INFORMATION"]
["SECTION VI: ACADEMIC AND VOCATIONAL OUTCOMES"]
["SECTION VII: ACADEMIC ACHIEVEMENT DATA"]
["DATA QUALITY CHECK SHEET"]
["ABOUT THIS FORM"]
["Evaluation Form is an XLSM File - An XLSM file extension is an Excel Macro-Enabled Workbook file. In order to use this tool, macros must be enabled. Be sure to save the evaluation as an XLSM file."]
["Hyperlinks - Hyperlinks can be found throughout the evaluation. Hyperlinks are written in blue. Click on a blue hyperlink and it will take you to the designated area. For example, hyperlinks can be found in the contents listed above. Click the desired topic, and the hyperlink will take you to the corresponding tab."]
["Data Check Sheet Tab – The purpose of the  tab is to provide feedback regarding the completeness, consistency, and usability of the evaluation data. Fields will become highlighted in yellow if there is a discrepancy in the data provided. The person completing the form will need to go back to the appropriate tables and fix any inconsistencies or provide justification. For quick access to a table, please click the desired hyperlink on the Data Check Sheet tab."]
["CHANGES FOR THIS YEAR"]
[]
[]
[]
[]
[]
[]
["End of page"]

{"sheet":"Instructions","index":3,"n_rows":12,"n_cols":1,"rows_kept":12,"cut":false,"hidden":false,"merged":[]}
["INSTRUCTIONS FOR COMPLETING THIS EVALUATION"]
["This form collects data on programs and facilities that serve students who are neglected, delinquent, or at risk under Title I, Part D, and characteristics about and services provided to these students."]
["An evaluation should be submitted for each Local Agency Facility for each of those programs that receive competitive grant funding under Title I, Part D, Subpart 2."]
["Throughout this form:"]
["• Report data for the program year of July 1, 2023 through June 30, 2024."]
["• Count programs/facilities based on how the program was classified to DEED for funding purposes."]
["• Do not include programs funded solely through Title I, Part A."]
["• Only report zeroes if the students or outcomes could be counted but there were none; do not use zeroes to indicate missing data or data that were not applicable."]
["Return this form to:\nJeanny Smith, Education Associate II\nAlaska Department of Education & Early Development\nPO Box 110500 • 333 Willoughby AVE, 9th FL, State Office\nJuneau, AK  99811-0500"]
["eed.NorDdata@alaska.gov"]
["Please use ZendTo, if submitting electronically: drop.state.ak.us"]
["end of page"]

{"sheet":"Section I","index":4,"n_rows":23,"n_cols":2,"rows_kept":23,"cut":false,"hidden":false,"merged":[]}
["SECTION I: FACILITY AND SCHOOL DISTRICT INFORMATION (submit ONE report per institution)"]
["1. Name of School District:","Select District Name  --->"]
["2. Institution/LEA Program:"]
[null,"(Submit ONE report per institution) "]
["3. Type of Program: (See definitions below)"]
["Delinquent:","Choose one"]
["         At-Risk Programs:","Choose one"]
["4. Academic Offerings: (Choose ALL that apply)"]
["During this reporting year students were awarded, through our program or through another agency:"]
["         at least one H.S. course credit:","Choose one"]
["         at least one H.S. diploma:","Choose one"]
["         at least one GED:","Choose one"]
["end of page"]
["Definitions Delinquent"]
["Adult correction ","An adult correctional institution is a facility in which persons, including persons 21 and under, are confined as a result of conviction for a criminal offense (ESEA section 1432(1))."]
["Community day programs","The term “community day program” means a regular program of instruction provided by a State agency at a community day school operated specifically for delinquent children and youth. "]
["Juvenile detention centers ","A juvenile detention center is a shorter-term institution that provides care to children who require secure custody pending court adjudication, court disposition, or execution of a court order, or care to children after commitment."]
["Shelters","A shelter is a short-term facility that provides temporary care similar to that of a detention center, but in a physically unrestricting environment. The Department notes that it is unlikely that most shelters will meet the definition of an institution for delinquent children and youth. "]
["Group homes ","A group home is a long-term facility in which residents are allowed extensive contact with the community, such as attending school or holding a job. Includes halfway houses."]
["Ranch/wilderness camps","A ranch/wilderness camp is a long-term residential facility for persons whose behavior does not necessitate the strict confinement of a long-term secure facility, often allowing them greater contact with the community. Includes ranches, forestry camps, wilderness or marine programs, or farms. "]
["Residential treatment centers ","A residential treatment center is a facility that focuses on providing some type of individually planned treatment program for youth (e.g., substance abuse, sex offender, mental health, etc.) in conjunction with residential care. The Department notes that it is unlikely that most treatment centers will meet the definition of an institution for delinquent children and youth."]
["Long-term secure juvenile facilities","A long-term secure facility is a public or private residential facility that provides confinement of its residents, for the care of children who have been adjudicated to be delinquent or in need of supervision. Similar to juvenile correctional facility. "]
["Other programs ","Any other facilities or programs, not defined above, which meet the definition of an institution for delinquent children and youth."]

{"sheet":"Section II","index":5,"n_rows":14,"n_cols":1,"rows_kept":14,"cut":false,"hidden":false,"merged":[]}
["SECTION II: PROGRAM EVALUATION"]
["1) Please describe the educational goals and objectives of your program below."]
[]
["2) Have the goals and objectives of the program changed since the beginning of the fiscal year? Answer below."]
["Choose one"]
["3) What information does the district use to evaluate whether the programs and activities funded using Title I, Part D, Subpart 2 grants are effective in reaching the targeted population? Answer below."]
[]
["4) What results have been shown in the academic achievement data from Subpart 1, Section VIII of this report? Answer below."]
[]
["5) Have the programs and activities been successful? Answer below."]
["Choose one"]
["6) Describe how the results of the evaluation will be used to improve the program. Answer below."]
[]
["end of page"]

{"sheet":"Section III","index":6,"n_rows":14,"n_cols":2,"rows_kept":14,"cut":false,"hidden":false,"merged":[]}
["SECTION III: ASSESSMENT TOOLS"]
["Specify the instruments used for assessments. (Choose ALL that apply.)"]
["1) State Assessments:","Choose one"]
["2) Initial & Follow-up Assessments: answer below"]
["            Reading (Provide name of assessment):","Choose one"]
["            Mathematics (Provide name of assessment):","Choose one"]
["3) Additional Assessments:"]
["            WRAT-III (Wide Range Achievement Test):","Choose one"]
["            TABE (Test of Adult Basic Education):","Choose one"]
["            AIMSWeb:","Choose one"]
["            MAP (Measures of Academic Progress):","Choose one"]
["            Other (Provide names):","Choose one"]
["end of page"]
["end of page"]

{"sheet":"Section IV","index":7,"n_rows":20,"n_cols":4,"rows_kept":20,"cut":false,"hidden":false,"merged":[[18,1,18,5],[10,0,10,5],[9,0,9,5],[7,1,7,5],[1,0,1,5],[8,1,8,5],[11,0,11,5],[17,1,17,5]]}
["SECTION IV: FACILITY COUNT INFORMATION"]
["In the table below, provide the number of state agency Title I, Part D, Subpart 2 programs and facilities that serve neglected and delinquent students and the average length of stay by program/facility type for these students. Report only programs and facilities that received Title I, Part D, Subpart 2 funding during the reporting year. Leave blank any columns that do not apply to your facility."]
["Table 2.4.2.1: Average Length of Stay","Delinquent Program","At-Risk Program"]
["Average Length of Stay in DAYS*"]
["Average number of days served"]
[]
["Definitions\n"]
["Average Length of Stay in DAYS\n\n","The average number of days per student enrollment for each facility or program during the reporting year. Multiple visits can be included."]
["Average number of days served","The average number of days that each student is in attendance and receiving services supported by Title I, Part D in the reporting year."]
["*How is average length of stay calculated?\nThe average length of stay should be weighted by number of students and should include the number of days, per visit, for each student enrolled during the reporting year, regardless of entry or exit date. Multiple visits for students who entered more than once during the reporting year can be included. The average length of stay in days should not exceed 365."]
["SECTION IV: STUDENT COUNT INFORMATION"]
["In the table below, provide the number of neglected and delinquent students served by Title I, Part D,\nSubpart 2 programs and facilities. Report only students who received Title I, Part D, Subpart 2 services during the reporting year. In row (A), provide the unduplicated number of students served by each program, and in row (B), the total number of students in row 1 who are long-term. Leave blank any columns that do not apply to your facility."]
["Table 2.4.2.2: Students Served","Delinquent Programs","At-Risk Program","TOTAL"]
["(A) Unduplicated Student Count",null,null,{"$f":"SUM(B14:C14)","v":0}]
["(B) Number of Long-term Students",null,null,{"$f":"SUM(B15:C15)","v":0}]
[]
["Definitions"]
["Unduplicated count\n","An unduplicated count is one that counts students only once, even if they were admitted to a facility or program multiple times within the reporting year."]
["Long-term","Long-term refers to students who were enrolled for at least 90 consecutive calendar days from July 1, 2023 through June 30, 2024."]
["end of page"]

{"sheet":"Section V","index":8,"n_rows":52,"n_cols":4,"rows_kept":52,"cut":false,"hidden":false,"merged":[]}
["SECTION V: STUDENT DEMOGRAPHIC INFORMATION"]
["Provide the number of neglected and delinquent students served in State agency Title I, Part D, Subpart 2 programs and facilities. Report only students who received Title I, Part D, Subpart 2 services during the reporting year."]
["Providing unduplicated counts: Students should only be counted once, regardless of how many times they enter the facility during a reporting period. The unduplicated count should be equal to the subtotals of each demographic category, and all demographic category counts should be equivalent to each other. For example, if the unduplicated count of students equals 120 students, then the race/ethnicity total should equal 120, the gender total should equal 120, and the age total should equal 120.\n"]
["In the table below, provide the unduplicated number of students served that were identified as students with disabilities (IDEA) or were identified as English learners (EL), served by Title I, Part D, Subpart 2 programs. Leave blank any columns that do not apply to your facility."]
["USE WHOLE NUMBERS ONLY - NO PERCENTAGES"]
["Table 2.4.2.2: SwD/LEP","Delinquent Program","At-Risk Program","TOTAL"]
["Students with Disabilities (IDEA)",null,null,{"$f":"SUM(B7:C7)","v":0}]
["English Learners (EL) ",null,null,{"$f":"SUM(B8:C8)","v":0}]
["end of table 1 of 4"]
["In the tables below, provide the number of students served by race/ethnicity, by sex, and by age.\nThe total number of students by race/ethnicity, by sex and by age will be automatically calculated."]
["USE WHOLE NUMBERS ONLY - NO PERCENTAGES"]
["Table 2.4.2.2: Race/Ethnicity","Delinquent Program","At-Risk Program"]
["American Indian or Alaska Native"]
["Asian"]
["Black or African-American"]
["Hispanic or Latino"]
["Native Hawaiian or other Pacific Islander"]
["White (non-Hispanic)"]
["Two or more races"]
["TOTAL Race/Ethnicity:",{"$f":"SUM(B13:B19)","v":0},{"$f":"SUM(C13:C19)","v":0}]
["end of table 2 of 4"]
["USE WHOLE NUMBERS ONLY - NO PERCENTAGES"]
["Table 2.4.2.2: Gender","Delinquent Program","At-Risk Program"]
["Male"]
["Female"]
["TOTAL Gender:",{"$f":"SUM(B24:B25)","v":0},{"$f":"SUM(C24:C25)","v":0}]
["end of table 3 of 4"]
["USE WHOLE NUMBERS ONLY - NO PERCENTAGES"]
["Table 2.4.2.2: Age","Delinquent Program","At-Risk Program"]
["3 through 5"]
[6]
[7]
[8]
[9]
[10]
[11]
[12]
[13]
[14]
[15]
[16]
[17]
[18]
[19]
[20]
[21]
["TOTAL Age:",{"$f":"SUM(B30:B46)","v":0},0]
["end of table 4 of 4; frequent questions and comment box below"]
["FAQ: Reporting a student's age: \nReport the age the student was when he/she left the facility or the age at the\nend of the reporting year (June 30), if the student is still enrolled."]
["Do the totals for race/ethnicity, gender, or age differ? If the total number of students differs between\ndemographics, please explain in comment box below."]
[]
["end of page"]

{"sheet":"Section VI","index":9,"n_rows":57,"n_cols":5,"rows_kept":57,"cut":false,"hidden":false,"merged":[]}
["SECTION VI: ACADEMIC & VOCATIONAL OUTCOMES"]
["The table below provides information on the age ranges used for federal reporting by the US Department of Education. These age ranges designate which age range of students could reasonably be expected to achieve each academic and vocational outcome."]
["Academic or Vocational Outcome","Age Ranges"]
["Enroll in a local school district","6-21"]
["Earn high school course credits","13-21"]
["Enroll in a GED program","14-21"]
["Earn a GED","16-21"]
["Obtain a high school diploma","16-21"]
["Be accepted to postsecondary education","16-21"]
["Enroll in a postsecondary education","16-21"]
["Enroll in elective job training/courses","16-21"]
["Enroll in external job training education","16-21"]
["Obtain employment","14-21"]
["end of table 1 of 4"]
["NOTE: Items in bold reflect Federal performance measures."]
["In the following tables, for each program type, first provide the unduplicated number of students who\nattained academic and vocational outcomes while enrolled in the State agency program/facility (white\ncolumn) and next provide the unduplicated number of students who attained academic and vocational \noutcomes within 90 calendar days after exiting (blue column). "]
["If the numbers include students outside the Title I, Part D Outcome Specific Age Ranges (see above),\nindicate this by checking the “Yes” box, below. The numbers should not exceed those reported earlier in the facility counts. Leave blank any columns that do not apply to your facility."]
["Do the student counts in the following tables include students outside the Title I-D Outcome Specific Age Ranges, as shown above?","Choose one"]
["If so, please indicate the ages outside of the range below."]
[]
[]
["Collection of Academic and Vocational Outcomes"]
["Click on the hyperlink to go to specific definition"]
["USE WHOLE NUMBERS ONLY - NO PERCENTAGES","Delinquent Program",null,"At-Risk Program"]
["2.4.2.3.2: Academic & Vocational Outcomes (once per student, only after exit)","In Facility\n(Delinq.)","90 days\nafter exit\n(Delinq.)","In Facility\n(At-risk)","90 days after exit\n(At-risk)"]
["Enrolled in their local district school"]
["end of table 2 of 4"]
["USE WHOLE NUMBERS ONLY - NO PERCENTAGES","Delinquent Program",null,"At-Risk Program"]
["2.4.2.3.2: Academic & Vocational Outcomes (once per student)","In Facility\n(Delinq.)","90 days\nafter exit\n(Delinq.)","In Facility\n(At-risk)","90 days\nafter exit\n(At-risk)"]
["Earned a GED"]
["Obtained high school diploma"]
["end of table 3 of 4"]
["USE WHOLE NUMBERS ONLY - NO PERCENTAGES","Delinquent Program",null,"At-Risk Program"]
["2.4.2.3.2: Academic & Vocational Outcomes (once per student per time period)","In Facility\n(Delinq.)","90 days\nafter exit\n(Delinq.)","In Facility\n(At-risk)","90 days\nafter exit\n(At-risk)"]
["Earned high school course credits"]
["Enrolled in a GED program"]
["Accepted/enrolled in post-secondary ed"]
["Enrolled in job training courses/programs"]
["Obtained employment"]
["end of table 4 of 4; clarification on outcome tables below"]
["Additional Clarification for  Academic and Vocational Outcome Tables "]
["• No length-of-stay requirement: There is no length-of-stay requirement for reporting a student’s academic and vocational outcomes – all students may be included regardless of their length of stay."]
["• One student achieving multiple outcomes: The same student may be counted as having attained more than one outcome. For example, the same student may have obtained employment and returned to a district school."]
["• Actual, not anticipated, outcomes: Counts should reflect actual, not anticipated, outcomes."]
["• Multiple student enrollments are allowed: Data for academic and vocational outcomes are not restricted to a student’s most recent enrollment/exit period. All outcomes achieved over multiple enrollment/exit periods during the reporting year should be included."]
["• Student counts, not outcome counts: In general, outcomes may be counted once per student per time period. (See exceptions for one-time events, such as earned a GED and obtained a high school diploma.) For example, if a student earns 10 high school course credits in the facility during his or her first enrollment, and 15 credits during his or her second enrollment, the student would be counted one time under “earned high school course credits while in the facility.”"]
["Definitions for Outcomes"]
["1. Once Per Student, Only After Exit: Outcomes a student is able to achieve only after exit.\nA student may be reported only once, per program type. "]
["2. Once Per Student: Outcomes a student is able to achieve only one time.\n A student may be reported only once across the two time periods, per program type."]
["3. Once Per Student Per Time Period: Outcomes a student may achieve more than once.\nIf a student attained an outcome once in the facility and once during the 90 day transition period,\nthat student may be reported once in each column. "]
["Definitions for Time Periods"]
["1. In Facility: This refers to outcomes achieved or attained during any point within the reporting year while the student was enrolled in the facility or program."]
["2. 90 Days After Exit: This refers to any time up to 90 days after a student has been released from the facility or program. Exiting does not refer to transfer to another facility within the juvenile justice or child welfare systems."]
["• The 90-day period does not require States to track children and youth for a full 90 days after exit.\nRather, this period give States that are able to provide transition data a longer tracking window\nin which students may be able to achieve outcomes after exiting. If States only are able to\nprovide data for a shorter period of time (i.e., 10, 20, or 30 days after exit) and students have\nachieved these outcomes, those data should be reported."]
["end of page"]
[" "]
[" "]

{"sheet":"Section VII","index":10,"n_rows":43,"n_cols":3,"rows_kept":43,"cut":false,"hidden":false,"merged":[]}
["SECTION VII: ACADEMIC ACHIEVEMENT DATA"]
["In the tables below, provide the unduplicated number of long-term students served by Title I, Part D, Subpart 2, who participated in reading and mathematics pre-and post-testing.  Students should be reported in only one of the four change categories."]
["Report only information on a student’s most recent testing data.  Students who were pre-tested prior to July 1, 2024, may be included if their post-test was administered during the reporting year.  Students who were post-tested after the reporting year ended should be counted in the following year. Leave blank any columns that do not apply to your facility."]
["USE WHOLE NUMBERS ONLY - NO PERCENTAGES; UNDUPLICATED COUNTS ONLY"]
["2.4.2.6.1: Achievement Data - READING"]
["Performance Data for Long-Term Students (based on most recent pre/post-test data)","Delinquent Program","At-Risk Program"]
["A.1. Pre-test ONLY results in reading"]
["A.2. Complete pre- and post-test results in reading"]
["A.3. Post-test ONLY results in reading"]
["A.4. NO pre- or post-test results in reading"]
["B.1. With pre-test results who tested at or above grade-level in reading upon entry"]
["B.2. With pre-test results who tested below grade-level in reading upon entry"]
["Of the students reported in A.2. above (who have both pre- & post-test results), the number who showed…"]
["C. Negative grade-level change from the Initial to Follow-up test reading exams"]
["D. No change in grade-level from the Initial to Follow-up test reading exams"]
["E. Improvement from up to one full grade-level from the Initial to Follow-up test reading exams"]
["F. Improvement of more than one full grade-level from the Initial to Follow-up test reading exams"]
["READING TOTAL",{"$f":"SUM(B14:B17)","v":0},{"$f":"SUM(C14:C17)","v":0}]
["G. The number of students who participated in a statewide assessment (optional)"]
["H. The number of students who attained proficiency on a statewide assessment (optional)"]
["I. The number of students who did not attain proficiency on a statewide assessment (optional)"]
["NOTE:\nThe sum of rows A.1. through B.2. must equal the number of long-term students in Section IV.\nThe sum of rows A.1. and A.2. must equal the sum of B.1. and B.2.\nThe number of students reported in row A.2. must equal the sum of rows C through F."]
["end of table 1 of 2"]
["USE WHOLE NUMBERS ONLY - NO PERCENTAGES; UNDUPLICATED COUNTS ONLY"]
["2.4.2.6.2: Achievement Data - MATHEMATICS"]
["Performance Data for Long-Term Students (based on most recent pre/post-test data)","Delinquent Program","At-Risk Program"]
["A.1. Pre-test ONLY results in math"]
["A.2. Complete pre- and post-test results in math"]
["A.3. Post-test ONLY results in math"]
["A.4. NO pre- or post-test results in math"]
["B.1. With pre-test results who tested at or above grade-level in math upon entry"]
["B.2. With pre-test results who tested below grade-level in math upon entry"]
["Of the students reported in A.2. above (who have both pre- & post-test results), the number who showed…"]
["C. Negative grade-level change from the Initial to Follow-up test math exams"]
["D. No change in grade-level from the Initial to Follow-up test math exams"]
["E. Improvement from up to one full grade-level from the Initial to Follow-up test math exams"]
["F. Improvement of more than one full grade-level from the Initial to Follow-up test math exams"]
["MATHEMATICS TOTAL",{"$f":"SUM(B34:B37)","v":0},{"$f":"SUM(C34:C37)","v":0}]
["G. The number of students who participated in a statewide assessment (optional)"]
["H. The number of students who attained proficiency on a statewide assessment (optional)"]
["I. The number of students who did not attain proficiency on a statewide assessment (optional)"]
["NOTE:\nThe sum of rows A.1. through B.2. must equal the number of long-term students in Section IV.\nThe sum of rows A.1. and A.2. must equal the sum of B.1. and B.2.\nThe number of students reported in row A.2. must equal the sum of rows C through F."]
["end of table 2 of 2; end of page"]

{"sheet":"Data Check Sheet","index":11,"n_rows":117,"n_cols":5,"rows_kept":117,"cut":false,"hidden":false,"merged":[]}
[{"$f":"\"Title I-D, Subpart 2 Annual Program Evaluation Data Check Sheet - \"&'Section I'!B2","v":"Title I-D, Subpart 2 Annual Program Evaluation Data Check Sheet - Select District Name  --->"}]
["SECTION IV: Table 2.4.2.1: Average Length of Stay","Delinquent Program","At-Risk Program"]
["Average Length of Stay in DAYS",{"$f":"'Section IV'!B4","v":0},{"$f":"'Section IV'!C4","v":0}]
["Average number of days served",{"$f":"'Section IV'!B5","v":0},{"$f":"'Section IV'!C5","v":0}]
["Criteria: Cannot exceed 365 days."]
["end table 1 of 11"]
["SECTION IV: Table 2.4.2.2: Students Served","Delinquent Program","At-Risk Program"]
["(A) Unduplicated Student Count",{"$f":"'Section IV'!B14","v":0},{"$f":"'Section IV'!C14","v":0}]
["(B) Number of Long-term Students",{"$f":"'Section IV'!B15","v":0},{"$f":"'Section IV'!C15","v":0}]
["Criteria: Long-term Count (B) cannot exceed Unduplicated Count (A)."]
["(B) Number of Long-term Students",{"$f":"'Section IV'!B15","v":0},{"$f":"'Section IV'!C14","v":0}]
["Section VII: Reading A.1 - A.4",{"$f":"SUM('Section VII'!B7:B10)","v":0},{"$f":"SUM('Section VII'!C7:C10)","v":0}]
["Section VII: Mathematics A.1 - A.4",{"$f":"SUM('Section VII'!B27:B30)","v":0},{"$f":"SUM('Section VII'!C27:C30)","v":0}]
["Criteria: Total of §VII: Reading A.1 - A.4 must equal §IV: Number of Long-term Students; Total of §VII: Mathematics A.1 - A.4 must equal §IV: Number of Long-term Students"]
["end table 2 of 11"]
["SECTION V: Table 2.4.2.2: SwD/EL","Delinquent Program","At-Risk Program"]
["Students with Disabilities (IDEA)",{"$f":"'Section V'!B7","v":0},{"$f":"'Section V'!C7","v":0}]
["English Learners",{"$f":"'Section V'!B8","v":0},{"$f":"'Section V'!C8","v":0}]
["Criteria: Cannot exceed Unduplicated Count (A) in Table 2.4.1.2."]
["end table 3 of 11"]
["SECTION V: Table 2.4.2.2: Race/Ethnicity","Delinquent Program","At-Risk Program"]
["TOTAL Race/Ethnicity:",{"$f":"'Section V'!B20","v":0},{"$f":"'Section V'!C20","v":0}]
["Criteria: Must equal that of Unduplicated Count (A) in Table 2.4.1.2."]
["end table 4 of 11"]
["SECTION V: Table 2.4.2.2: Gender","Delinquent Program","At-Risk Program"]
["TOTAL Gender:",{"$f":"'Section V'!B26","v":0},{"$f":"'Section V'!C26","v":0}]
["Criteria: Must equal that of Unduplicated Count (A) in Table 2.4.1.2."]
["end table 5 of 11"]
["SECTION V: Table 2.4.2.2: Age","Delinquent Program","At-Risk Program"]
["TOTAL Age:",{"$f":"'Section V'!B47","v":0},{"$f":"'Section V'!C47","v":0}]
["Criteria: Must equal that of Unduplicated Count (A) in Table 2.4.1.2."]
["end table 6 of 11"]
["SECTION VI: 2.4.2.3.2: Once per student, only after exit","Delinquent Program\nCount","Delinquent Program\nCannot Exceed","At-Risk Program\nCount","At-Risk Program\nCannot Exceed"]
["Enrolled in their local district school (age 6-21)",{"$f":"'Section VI'!C26","v":0},{"$f":"SUM('Section V'!B31:B46)","v":0},{"$f":"'Section VI'!E26","v":0},{"$f":"SUM('Section V'!C31:C46)","v":0}]
["Criteria: Cannot exceed total of applicable ages from Section V: Table 2.4.1.2: Age."]
["end table 7 of 11"]
["SECTION VI: 2.4.2.3.2: Once per student","Delinquent Program\nCount","Delinquent Program\nCannot Exceed","At-Risk Program\nCount","At-Risk Program\nCannot Exceed"]
["Earned a GED (age 16-21)",{"$f":"'Section VI'!B30","v":0},{"$f":"SUM('Section V'!B41:B46)","v":0},{"$f":"'Section VI'!D30","v":0},{"$f":"SUM('Section V'!C41:C46)","v":0}]
["Obtained high school diploma (age 16-21)",{"$f":"'Section VI'!B31","v":0},{"$f":"SUM('Section V'!B41:B46)","v":0},{"$f":"'Section VI'!D31","v":0},{"$f":"SUM('Section V'!C41:C46)","v":0}]
["Criteria: Cannot exceed total of applicable ages from Section V: Table 2.4.1.2: Age."]
["end table 8 of 11"]
["SECTION VI: 2.4.2.3.2: Once per student per time period","Delinquent Program\nCount","Delinquent Program\nCannot Exceed","At-Risk Program\nCount","At-Risk Program\nCannot Exceed"]
["Earned high school course credits (age 13-21)",{"$f":"'Section VI'!B35+'Section VI'!C35","v":0},{"$f":"SUM('Section V'!B38:B46)*2","v":0},{"$f":"'Section VI'!D35+'Section VI'!E35","v":0},{"$f":"SUM('Section V'!C38:C46)*2","v":0}]
["Enrolled in a GED program (age 14-21)",{"$f":"'Section VI'!B36+'Section VI'!C36","v":0},{"$f":"SUM('Section V'!B39:B46)*2","v":0},{"$f":"'Section VI'!D36+'Section VI'!E36","v":0},{"$f":"SUM('Section V'!C39:C46)*2","v":0}]
["Accepted OR enrolled into post-secondary (age 16-21)",{"$f":"'Section VI'!B37+'Section VI'!C37","v":0},{"$f":"SUM('Section V'!B41:B46)*2","v":0},{"$f":"'Section VI'!D37+'Section VI'!E37","v":0},{"$f":"SUM('Section V'!C41:C46)*2","v":0}]
["Enrolled in job training courses/programs (age 16-21)",{"$f":"'Section VI'!B38+'Section VI'!C38","v":0},{"$f":"SUM('Section V'!B41:B46)*2","v":0},{"$f":"'Section VI'!D38+'Section VI'!E38","v":0},{"$f":"SUM('Section V'!C41:C46)*2","v":0}]
["Obtained employment (age 14-21)",{"$f":"'Section VI'!B39+'Section VI'!C39","v":0},{"$f":"SUM('Section V'!B39:B46)*2","v":0},{"$f":"'Section VI'!D39+'Section VI'!E39","v":0},{"$f":"SUM('Section V'!C39:C46)*2","v":0}]
["Criteria: Cannot exceed total of applicable ages from Section V: Table 2.4.1.2: Age."]
["end table 9 of 11"]
["SECTION VII: 2.4.2.6.1: Achievement Data - READING","Delinquent Program","At-Risk Program"]
["A.1. Pre-test ONLY results in reading",{"$f":"'Section VII'!B7","v":0},{"$f":"'Section VII'!C7","v":0}]
["A.2. Complete pre- and post-test results in reading",{"$f":"'Section VII'!B8","v":0},{"$f":"'Section VII'!C8","v":0}]
["B.1. With pre-test results who tested at or above grade-level in reading upon entry",{"$f":"'Section VII'!B11","v":0},{"$f":"'Section VII'!C11","v":0}]
["B.2. With pre-test results who tested below grade-level in reading upon entry",{"$f":"'Section VII'!B12","v":0},{"$f":"'Section VII'!C12","v":0}]
["READING TOTAL - Sum of C, D, E, & F",{"$f":"'Section VII'!B18","v":0},{"$f":"'Section VII'!C18","v":0}]
["Criteria: A1 + A2 must equal B1 + B2.",{"$f":"IF(B51+B52=B53+B54,\"Yes\",\"No\")","v":"Yes"},"Yes"]
["Criteria: A2 must equal the sum of C, D, E, & F.",{"$f":"IF(B52=B55,\"Yes\",\"No\")","v":"Yes"},"Yes"]
["Criteria: A2 cannot exceed total long-term Section IV: Table 2.4.1.2.b: Long-term Students Served",{"$f":"IF(B55<=B9,\"Yes\",\"No\")","v":"Yes"},{"$f":"IF(C55<=C9,\"Yes\",\"No\")","v":"Yes"}]
["end table 10 of 11"]
["SECTION VII: 2.4.2.6.2: Achievement Data - MATH","Delinquent Program","At-Risk Program"]
["A.1. Pre-test ONLY results in math",{"$f":"'Section VII'!B27","v":0},{"$f":"'Section VII'!C27","v":0}]
["A.2. Complete pre- and post-test results in math",{"$f":"'Section VII'!B28","v":0},{"$f":"'Section VII'!C28","v":0}]
["B.1. With pre-test results who tested at or above grade-level in math upon entry",{"$f":"'Section VII'!B31","v":0},{"$f":"'Section VII'!C31","v":0}]
["B.2. With pre-test results who tested below grade-level in math upon entry",{"$f":"'Section VII'!B32","v":0},{"$f":"'Section VII'!C32","v":0}]
["MATHEMATICS TOTAL - Sum of C, D, E, & F",{"$f":"'Section VII'!B38","v":0},{"$f":"'Section VII'!C38","v":0}]
["Criteria: A1 + A2 must equal B1 + B2.",{"$f":"IF(B61+B62=B63+B64,\"Yes\",\"No\")","v":"Yes"},"Yes"]
["Criteria: A2 must equal the sum of C, D, E, & F.",{"$f":"IF(B62=B65,\"Yes\",\"No\")","v":"Yes"},"Yes"]
["Criteria: A2 cannot exceed total long-term Section IV: Table 2.4.1.2.b: Long-term Students Served",{"$f":"IF(B65<=B9,\"Yes\",\"No\")","v":"Yes"},{"$f":"IF(C65<=C9,\"Yes\",\"No\")","v":"Yes"}]
["end table 11 of 11 (definitions listed below)"]
["One-Time Outcome Definitions and Instructions "]
["Enrolled in their local district school: The number of students who returned to or enrolled in local district schools\n(but external to the juvenile justice system)."]
["• What time period to report in: "]
["o 90 Days After Exit Only:\nIf a student enrolled, or planned to enroll, in his or her local district school after exit,\nreport the student in this column."]
[" Earned a GED: The number of students who earned a GED."]
["• Students may be counted for this item in locations where the GED is awarded by the State\n(rather than the facility)."]
["•What time period to report in: "]
["o In Facility Only:\nIf the student earned a GED while enrolled in the facility, report the student in this column."]
["o 90 Days After Exit Only:\nIf the student earned a GED between 1–90 days after exit, report the student in this column."]
["o Do not report the student in both columns."]
["Obtained a high school diploma: The number of students who earned a high school diploma."]
["• What time period to report in: "]
["o In Facility Only:\nIf the student obtained a high school diploma while enrolled in the facility or program,\nreport the student in this column."]
["o 90 Days After Exit Only:\nIf the student obtained a high school diploma between 1–90 days after exit,\nreport the student in this column."]
["o Do not report the student in both columns."]
["Outcomes Potentially Occuring Across the Two Time Periods Definitions and Instructions "]
["Earned high school course credits: The number of students who earned transferable high school course credits."]
["•  What time period to report in:"]
["o  In Facility Only:\nIf the student earned high school course credits only while in the facility or program,\nreport the student in this column."]
["o  90 Days After Exit Only:\nIf the student earned high school course credits only within 1–90 days after exit,\nreport the student in this column."]
["o  Both Time Periods:\nIf the student earned high school course credits both while in the facility or program\nAND within 90 days after exit, report the student once in each column."]
["Enrolled in a GED program: The number of students who enrolled in a program or course designed specifically to help students pass the GED."]
["• The GED course need not be run by the facility itself for students to be reported under this item."]
["• What time period to report in: "]
["o In Facility Only:\nand the student continues enrollment in the same GED course after exiting, report the student here, as enrollment was initiated in the facility. If the student enrolled in a GED program only while enrolled in the facility, report the student in this column. If a student enrolls in a GED program while in the facility"]
["o 90 Days After Exit Only:\nIf the student enrolled in a GED program only within 90 days after exit,\nreport the student in this column."]
["o Both Time Periods:\nIf the student enrolled in one GED program while in the facility or program and then enrolled in a different GED program within 90 days after exit, report the student once in each column."]
["Accepted or enrolled in postsecondary education:\nThe number of students accepted and/or enrolled in postsecondary programs.\nPostsecondary education refers to an independent postsecondary educational program; it does not refer to individual college-level courses that are part of a facility’s educational programming. Students may be reported if they meet one of the following criteria:\n(1) they are accepted into a postsecondary program (and subsequently enroll or decline), or\n(2) enroll in a program that does not require an application process. Accepting and then enrolling in the same school may only be counted one time in one time period."]
["• The programs/courses need not be run by, and the outcomes need not be awarded by, the facility itself to be counted."]
["• What time period to report in: "]
["o In Facility Only:\nIf the student is accepted and/or enrolls in a postsecondary program only while enrolled in the facility,\nreport the student in this column."]
["o 90 Days After Exit Only:\nIf the student is accepted and/or enrolls in a postsecondary program only within 90 days after exit,\nreport the student in this column."]
["o Both Time Periods:\nIf the student is accepted and/or enrolls in one postsecondary program while in the facility,\nand later is accepted and/or enrolls in a different postsecondary program within 90 days after exit,\nreport the student once in each column."]
["Enrolled in job training courses/programs: The number of students enrolled in vocational/job training programs or courses. The programs or courses should not\nbe part of a 2- or 4-year postsecondary degree program, which should be reported under “Accepted or enrolled into postsecondary education” (above)."]
["• The programs or courses may be provided by the facility/program or through an external organization."]
["• Dual outcomes with HS course credits. If a student earned transferrable high school course credit through a job training course, districts may count the student both as having earned high school course credit and as having enrolled in job training courses/programs."]
["• Required vocational education. If enrollment in vocational courses is required by the facility, districts  may also include students enrolled in those types of vocational programs under this item."]
["• What time period to report in: "]
["o In Facility Only:\nIf the student enrolled in job training courses/programs only while enrolled in the facility,\nreport the student in this column."]
["o 90 Days After Exit Only:\nIf the student enrolled in job training courses/programs only within 90 days after exit,\nreport the student in this column."]
["o Both Time Periods:\nIf the student enrolled in job training courses/programs while in the facility\nand then enrolled in a different job training course/program within 90 days after exit,\nreport the student once in each column."]
["Obtained employment: The number of students who received job offers."]
["• Employing students within a facility. Students who are employed within the facility during their enrollment should not be counted under “obtained employment in\nfacility.” The purpose of this indicator is to capture transition outcomes for students as they leave facilities or programs. If a student obtains employment with and\nremains working in the facility or program after their exit date, then they may be included."]
["• What time period to report in: "]
["o In Facility Only:\nIf the student received a job offer only while enrolled in the facility for a job they intend to work at after exit, report the student in this column."]
["o 90 Days After Exit Only:\nIf the student received a job offer only within 90 days after exit, report the student in this column."]
["o Both Time Periods:\nIf the student received a job offer while in the facility and also received a different job offer\nwithin 90 days after exit, report the student once in each column."]
["end of page (last page of form/workbook)"]